Workbook

Sheet Loans
A1: As a business owner of a Wooden Toy company, you need to buy a CNC Router Machine. The machine cost $500,000. You have been diligent, and from various banks you have gathered various loan offers.
A2: ="The details of the loans are in columns "&LEFT(ADDRESS(ROW(A13),COLUMN(A13),4))&" to "&LEFT(ADDRESS(ROW(F13),COLUMN(F13),4))&" and in cells "&ADDRESS(ROW(B8),COLUMN(B8),4)&" and "&ADDRESS(ROW(B9),COLUMN(B8),4)&" and "&ADDRESS(ROW(B10),COLUMN(B10),4) -> The details of the loans are in columns A to F and in cells B8 and B9 and B10
A3: ="In column "&LEFT(ADDRESS(ROW(G13),COLUMN(G13),4))&", calculate the loan value (be sure to consider the down payment). In column "&LEFT(ADDRESS(ROW(H13),COLUMN(H13),4))&", calculate the monthly PMT. In column "&LEFT(ADDRESS(ROW(I13),COLUMN(I13),4))&", calculate the Actual Amount Borrowed (take into consideration the points and fees). In column "&LEFT(ADDRESS(ROW(J13),COLUMN(J13),4))&", calculate the APR based on the Actual Amount Borrowed. In column "&LEFT(ADDRESS(ROW(K13),COLUMN(K13),4))&", calculate the Payment with the balloon payment as listed in "&ADDRESS(ROW(B10),COLUMN(B10),4)&"." -> In column G, calculate the loan value (be sure to consider the down payment). In column H, calculate the monthly PMT. In column I, calculate the Actual Amount Borrowed (take into consideration the points and fees). In column J, calculate the APR based on the Actual Amount Borrowed. In column K, calculate the Payment with the balloon payment as listed in B10.
A4: ="In cell "&ADDRESS(ROW(A19),COLUMN(A19),4)&" describe which loan you would select and why." -> In cell A19 describe which loan you would select and why.
A6: Analyze Various Loans
A8: Purchase Price | B8: 500000
A9: Number of Compounding Periods/year | B9: 4
A10: Optional Balloon Payment | B10: 100000
A12: Option# | B12: Down Payment | C12: Nominal Interest Rate/yr | D12: Duration (yrs) | E12: Points | F12: Fees | G12: Loan Value | H12: Monthly Payment | I12: Actual Amount Borrowed | J12: APR | K12: Payment with Balloon
A13: 1 | B13: 0.15 | C13: 0.08 | D13: 30 | E13: 2 | F13: 450
A14: 2 | B14: 0.18 | C14: 0.0795 | D14: 25 | E14: 1.75 | F14: 375
A15: 3 | B15: 0.175 | C15: 0.0915 | D15: 20 | E15: 2.5 | F15: 295
A16: 4 | B16: 0.25 | C16: 0.075 | D16: 25 | E16: 0 | F16: 0
A17: 5 | B17: 0.2 | C17: 0.0695 | D17: 20 | E17: 0 | F17: 0

Sheet Loans(an) (hidden)
A1: As a business owner of a Wooden Toy company, you need to buy a CNC Router Machine. The machine cost $500,000. You have been diligent, and from various banks you have gathered various loan offers.
A2: ="The details of the loans are in columns "&LEFT(ADDRESS(ROW(A13),COLUMN(A13),4))&" to "&LEFT(ADDRESS(ROW(F13),COLUMN(F13),4))&" and in cells "&ADDRESS(ROW(B8),COLUMN(B8),4)&" and "&ADDRESS(ROW(B9),COLUMN(B8),4)&" and "&ADDRESS(ROW(B10),COLUMN(B10),4) -> The details of the loans are in columns A to F and in cells B8 and B9 and B10
A3: ="In column "&LEFT(ADDRESS(ROW(G13),COLUMN(G13),4))&", calculate the loan value (be sure to consider the down payment). In column "&LEFT(ADDRESS(ROW(H13),COLUMN(H13),4))&", calculate the monthly PMT. In column "&LEFT(ADDRESS(ROW(I13),COLUMN(I13),4))&", calculate the Actual Amount Borrowed (take into consideration the points and fees). In column "&LEFT(ADDRESS(ROW(J13),COLUMN(J13),4))&", calculate the APR based on the Actual Amount Borrowed. In column "&LEFT(ADDRESS(ROW(K13),COLUMN(K13),4))&", calculate the Payment with the balloon payment as listed in "&ADDRESS(ROW(B10),COLUMN(B10),4)&"." -> In column G, calculate the loan value (be sure to consider the down payment). In column H, calculate the monthly PMT. In column I, calculate the Actual Amount Borrowed (take into consideration the points and fees). In column J, calculate the APR based on the Actual Amount Borrowed. In column K, calculate the Payment with the balloon payment as listed in B10.
A4: ="In cell "&ADDRESS(ROW(A19),COLUMN(A19),4)&" describe which loan you would select and why." -> In cell A19 describe which loan you would select and why.
A6: Analyze Various Loans
A8: Purchase Price | B8: 500000
A9: Number of Compounding Periods/year | B9: 4
A10: Optional Balloon Payment | B10: 100000
A12: Option# | B12: Down Payment | C12: Nominal Interest Rate/yr | D12: Duration (yrs) | E12: Points | F12: Fees | G12: Loan Value | H12: Monthly Payment | I12: Actual Amount Borrowed | J12: Adjusted APR | K12: Payment with Balloon
A13: 1 | B13: 0.15 | C13: 0.08 | D13: 30 | E13: 2 | F13: 450 | G13: =B$8*(1-B13) -> 425000 | H13: =PMT(C13/B$9,D13*B$9,G13) -> -9370.441176 | I13: =G13*(1-E13/100)-F13 -> 416050 | J13: =RATE(D13*B$9,H13,I13)*B$9 -> 0.08225868183 | K13: =PMT(C13/B$9,D13*B$9,G13,-B$10) -> -9165.631488
A14: 2 | B14: 0.18 | C14: 0.0795 | D14: 25 | E14: 1.75 | F14: 375 | G14: =B$8*(1-B14) -> 410000 | H14: =PMT(C14/B$9,D14*B$9,G14) -> -9472.372548 | I14: =G14*(1-E14/100)-F14 -> 402450 | J14: =RATE(D14*B$9,H14,I14)*B$9 -> 0.08167396113 | K14: =PMT(C14/B$9,D14*B$9,G14,-B$10) -> -9149.53778
A15: 3 | B15: 0.175 | C15: 0.0915 | D15: 20 | E15: 2.5 | F15: 295 | G15: =B$8*(1-B15) -> 412500 | H15: =PMT(C15/B$9,D15*B$9,G15) -> -11283.70126 | I15: =G15*(1-E15/100)-F15 -> 401892.5 | J15: =RATE(D15*B$9,H15,I15)*B$9 -> 0.09519694403 | K15: =PMT(C15/B$9,D15*B$9,G15,-B$10) -> -10835.75853
A16: 4 | B16: 0.25 | C16: 0.075 | D16: 25 | E16: 0 | F16: 0 | G16: =B$8*(1-B16) -> 375000 | H16: =PMT(C16/B$9,D16*B$9,G16) -> -8331.266456 | I16: =G16*(1-E16/100)-F16 -> 375000 | J16: =RATE(D16*B$9,H16,I16)*B$9 -> 0.075 | K16: =PMT(C16/B$9,D16*B$9,G16,-B$10) -> -7984.595401
A17: 5 | B17: 0.2 | C17: 0.0695 | D17: 20 | E17: 0 | F17: 0 | G17: =B$8*(1-B17) -> 400000 | H17: =PMT(C17/B$9,D17*B$9,G17) -> -9292.269605 | I17: =G17*(1-E17/100)-F17 -> 400000 | J17: =RATE(D17*B$9,H17,I17)*B$9 -> 0.0695 | K17: =PMT(C17/B$9,D17*B$9,G17,-B$10) -> -8706.702204
A19: If I did not need as much cash up front and 20 years was appropriate, I would go with Option #5 because the financing fees are low and the Adjusted APR is lowest.

Sheet Amortization Table
A1: You just took out a business loan for 15 years at an annual rate of 9.25% compounded semi-annually. You borrowed $100,000 and a $25,000 balloon payment is due on the last day. The payments are made at the end of each period. Create an amortization table that shows how much of each payment is a reduction in principal and how much is interest payment.

Sheet Amortization Table (an) (hidden)
A1: You just took out a business loan for 15 years at an annual rate of 9.25% compounded semi-annually. You borrowed $100,000 and a $25,000 balloon payment is due on the last day. The payments are made at the end of each period. Create an amortization table that shows how much of each payment is a reduction in principal and how much is interest payment.
A3: Loan Amount | B3: 100000
A4: Annual Rate | B4: 0.0925
A5: Number of Compounding Periods Per Year | B5: 2
A6: Period Rate | B6: =B4/B5 -> 0.04625
A7: Years | B7: 15
A8: Total Periods | B8: =B7*B5 -> 30
A9: Payments at end of each month | B9: 0 or defualt
A10: Ballonn Paymnet at the end | B10: 25000
A11: PMT | B11: =PMT(B6,B8,B3,-B10) -> -5828.559157
C13: Periods | D13: PMT | E13: Interest | F13: Reduction In Loan | G13: Balance
C14: 0 | G14: =B3 -> 100000
C15: 1 | D15: =-$B$11 -> 5828.559157 | E15: =G14*B$6 -> 4625 | F15: =D15-E15 -> 1203.559157 | G15: =G14-F15 -> 98796.44084
C16: 2 | D16: 5828.559157 | E16: =G15*B$6 -> 4569.335389 | F16: =D16-E16 -> 1259.223768 | G16: =G15-F16 -> 97537.21708
C17: 3 | D17: 5828.559157 | E17: 4511.09629 | F17: 1317.462867 | G17: 96219.75421
C18: 4 | D18: 5828.559157 | E18: 4450.163632 | F18: 1378.395525 | G18: 94841.35868
C19: 5 | D19: 5828.559157 | E19: 4386.412839 | F19: 1442.146318 | G19: 93399.21237
C20: 6 | D20: 5828.559157 | E20: 4319.713572 | F20: 1508.845585 | G20: 91890.36678
C21: 7 | D21: 5828.559157 | E21: 4249.929464 | F21: 1578.629693 | G21: 90311.73709
C22: 8 | D22: 5828.559157 | E22: 4176.91784 | F22: 1651.641316 | G22: 88660.09577
C23: 9 | D23: 5828.559157 | E23: 4100.529429 | F23: 1728.029727 | G23: 86932.06604
C24: 10 | D24: 5828.559157 | E24: 4020.608055 | F24: 1807.951102 | G24: 85124.11494
C25: 11 | D25: 5828.559157 | E25: 3936.990316 | F25: 1891.568841 | G25: 83232.5461
C26: 12 | D26: 5828.559157 | E26: 3849.505257 | F26: 1979.053899 | G26: 81253.4922
C27: 13 | D27: 5828.559157 | E27: 3757.974014 | F27: 2070.585142 | G27: 79182.90706
C28: 14 | D28: 5828.559157 | E28: 3662.209452 | F28: 2166.349705 | G28: 77016.55736
C29: 15 | D29: 5828.559157 | E29: 3562.015778 | F29: 2266.543379 | G29: 74750.01398
C30: 16 | D30: 5828.559157 | E30: 3457.188146 | F30: 2371.37101 | G30: 72378.64297
C31: 17 | D31: 5828.559157 | E31: 3347.512237 | F31: 2481.04692 | G31: 69897.59605
C32: 18 | D32: 5828.559157 | E32: 3232.763817 | F32: 2595.79534 | G32: 67301.80071
C33: 19 | D33: 5828.559157 | E33: 3112.708283 | F33: 2715.850874 | G33: 64585.94983
C34: 20 | D34: 5828.559157 | E34: 2987.10018 | F34: 2841.458977 | G34: 61744.49086
C35: 21 | D35: 5828.559157 | E35: 2855.682702 | F35: 2972.876455 | G35: 58771.6144
C36: 22 | D36: 5828.559157 | E36: 2718.187166 | F36: 3110.371991 | G36: 55661.24241
C37: 23 | D37: 5828.559157 | E37: 2574.332461 | F37: 3254.226695 | G37: 52407.01572
C38: 24 | D38: 5828.559157 | E38: 2423.824477 | F38: 3404.73468 | G38: 49002.28104
C39: 25 | D39: 5828.559157 | E39: 2266.355498 | F39: 3562.203659 | G39: 45440.07738
C40: 26 | D40: 5828.559157 | E40: 2101.603579 | F40: 3726.955578 | G40: 41713.1218
C41: 27 | D41: 5828.559157 | E41: 1929.231883 | F41: 3899.327274 | G41: 37813.79452
C42: 28 | D42: 5828.559157 | E42: 1748.887997 | F42: 4079.67116 | G42: 33734.12336
C43: 29 | D43: 5828.559157 | E43: 1560.203206 | F43: 4268.355951 | G43: 29465.76741
C44: 30 | D44: 5828.559157 | E44: 1362.791743 | F44: 4465.767414 | G44: 25000
